Cogmind - Beta 16.1 @@@ ROGUE MODE // 2026.02.15 @ 18:36:48 Player: Florist Result: Destroyed by P-80 Master with Gamma Rifle Performance ------------- Evolutions (9) 4500 Regions Visited (27) 5400 Robots Destroyed (330) 1650 Value Destroyed (10636) 10636 Prototype IDs (64) 1280 Alien Tech Used (0) 0 Bonus (15049) 15049 TOTAL SCORE: 38515 Bonus ------- High Alert Combat Kills 59 Follower Combat Kills 1765 Network Hubs Disabled 600 Aligned with FarCom 300 Met Warlord at Base 500 MAIN.C Attacked Warlord 500 Warlord Defense Kills 54 Met Warlord at Research 2000 Invited to Help at Command 2000 Destroyed MAIN.C Guards 500 Met MAIN.C 5000 Met Warlord at Command 2000 Friendly Fire -229 Cogmind --------- Core Integrity 0/1600 Matter 274/300 Energy 85/100 System Corruption 30% Temperature Cool (0) Movement Core (50) Location -1/Command Parts ------- > --- POWER (2) -------- (None) > --- PROPULSION (8) --- (None) > --- UTILITY (13) ----- Machine Analyzer Improved Melee Analysis Suite Improved Melee Analysis Suite Experimental Melee Analysis Suite Advanced Target Analyzer Graphene Brace Ghost Barrier > --- WEAPON (2) ------- Nanosword > --- INVENTORY (5) ---- Particle Reactor Flexi-carbon Leg Myomer Leg Phasing Sabre Nanosword Peak State ------------ > --- POWER ------------ Light Antimatter Reactor Particle Reactor > --- PROPULSION ------- Xenon Bombardment Thruster Nuclear Pulse Array Electron Diverter Impulse Thruster Array Impulse Thruster Array > --- UTILITY ---------- Medium Storage Unit Machine Analyzer Experimental Melee Analysis Suite Experimental Melee Analysis Suite Experimental Melee Analysis Suite Advanced Target Analyzer Experimental Armor Integrity Analyzer Advanced Force Booster Centrium Light Armor Plating Advanced Point Defense System Advanced Point Defense System Improved Hacking Suite Ghost Barrier > --- WEAPON ----------- Nanosword Nanosword > --- INVENTORY -------- Particle Reactor Vortex Chain Reactor Advanced Reaction Control System Cloaking Device Graphene Brace Advanced Shield Generator Phasing Sabre Nanosword [Rating: 189] Favorites ----------- Power Cooled Ion Engine Engine Cooled Ion Engine Power Core Micro Nuclear Core Reactor Particle Reactor Propulsion Light Treads Treads Light Treads Leg Improved Aluminum Leg Wheel Compact Wheel Hover Unit Gravmag System Flight Unit Cooled VTOL Module Utility High-capacity Storage Unit Device Seismic Detector Storage High-capacity Storage Unit Processor Experimental Melee Analysis Suite Hackware Hacking Suite Protection Light Armor Plating Weapon Advanced Beam Cannon Energy Gun EM Pulse Gun Energy Cannon Advanced Beam Cannon Ballistic Gun Light Assault Rifle Launcher Heavy Missile Launcher Special Weapon Improved Plasma Cutter Impact Weapon Flail Slashing Weapon Scythe Piercing Weapon Lance Build | -11 -10 -9 -9 -9 -8 -8 -8 -7 -7 -7 -7 -7 -6 -5 -5 -5 -5 -5 -4 -4 -4 -4 -3 -3 -2 -1 -1 ------- Run | Yrd Mat Mat Min Exi Min Mat Sto Fac Was Fac Low Low Fac Fac Ext Cet Arc Hub Fac Upp Upp War Pro Res Res Acc Com Slots Evolved 18 | . . 2 . . . 2 . 2 . . . . 2 2 . . . . 2 . . . . 2 2 2 . Power 1 | . . . . . . . . . . . . . . . . . . . 1 . . . . . . . . Propulsion 6 | . . 1 . . . 1 . . . . . . . 2 . . . . 1 . . . . . 1 . . Utility 11 | . . 1 . . . 1 . 2 . . . . 2 . . . . . . . . . . 2 1 2 . Weapon . | . . . . . . . . . . . . . . . . . . . . . . . . . . . . Parts Attached 263 | 8 3 23 . . . 24 5 8 2 27 9 . 17 6 13 1 13 1 18 4 . 14 18 9 22 1 17 Power 28 | 1 . 3 . . . 1 . 1 1 1 . . 1 . 4 . 1 . 2 1 . 3 1 1 5 . 1 Engine 14 | 1 . 3 . . . 1 . 1 1 1 . . . . 2 . 1 . 2 . . 1 . . . . . Core 5 | . . . . . . . . . . . . . 1 . 2 . . . . 1 . 1 . . . . . Reactor 9 | . . . . . . . . . . . . . . . . . . . . . . 1 1 1 5 . 1 Propulsion 92 | 2 . 10 . . . 11 1 1 1 7 3 . 4 2 2 1 7 . 12 1 . 4 5 4 7 . 7 Treads 20 | 2 . 8 . . . 5 1 1 1 . 2 . . . . . . . . . . . . . . . . Leg 18 | . . . . . . 6 . . . 7 . . . . . . . . . . . 1 . . . . 4 Wheel 1 | . . 1 . . . . . . . . . . . . . . . . . . . . . . . . . Hover 23 | . . . . . . . . . . . 1 . . . . . 7 . 7 . . . 2 4 1 . 1 Flight 30 | . . 1 . . . . . . . . . . 4 2 2 1 . . 5 1 . 3 3 . 6 . 2 Utility 95 | 2 2 4 . . . 8 2 5 . 14 1 . 9 2 4 . 5 1 3 2 . 4 7 4 6 1 9 Device 33 | 1 . 1 . . . 2 1 1 . 3 1 . . . 4 . . . 2 2 . 2 3 . 3 1 6 Storage 11 | 1 2 . . . . 2 . . . 4 . . . . . . . . 1 . . . . 1 . . . Processor 18 | . . . . . . . . 3 . 2 . . 3 . . . . . . . . 1 3 1 2 . 3 Hackware 18 | . . . . . . . . . . 1 . . 5 2 . . 5 1 . . . 1 1 2 . . . Protection 15 | . . 3 . . . 4 1 1 . 4 . . 1 . . . . . . . . . . . 1 . . Artifact . | . . . . . . . . . . . . . . . . . . . . . . . . . . . . Weapon 48 | 3 1 6 . . . 4 2 1 . 5 5 . 3 2 3 . . . 1 . . 3 5 . 4 . . Energy Gun 5 | 2 . 1 . . . . . . . 2 . . . . . . . . . . . . . . . . . Energy Cannon 8 | . . 4 . . . . . . . . 1 . . 1 . . . . . . . 1 1 . . . . Ballistic Gun 11 | 1 1 1 . . . . . . . 3 3 . . . . . . . . . . . 2 . . . . Ballistic Cannon . | . . . . . . . . . . . . . . . . . . . . . . . . . . . . Launcher 7 | . . . . . . 1 . 1 . . 1 . 2 . . . . . 1 . . 1 . . . . . Special Weapon 1 | . . . . . . . . . . . . . . . 1 . . . . . . . . . . . . Impact Weapon 3 | . . . . . . 3 . . . . . . . . . . . . . . . . . . . . . Slashing Weapon 8 | . . . . . . . 2 . . . . . 1 1 2 . . . . . . . . . 2 . . Piercing Weapon 5 | . . . . . . . . . . . . . . . . . . . . . . 1 2 . 2 . . Special Melee Weapon . | . . . . . . . . . . . . . . . . . . . . . . . . . . . . Unidentified Prototypes 27 | . . 4 . . . . . . . . 1 . 1 1 . . . . 1 . . 8 6 . 4 . 1 Corrupted Parts 4 | . . . . . . 3 . . . . . . . . . . . . . . . . . . 1 . . System Corruption 28 | . . . . . . 20 . . . . . . . . . . . . . . . . . . 8 . . Parts Lost 99 | . . 5 . . . 3 . . 6 7 12 . . . 8 2 1 3 4 4 2 1 9 2 7 . 23 Power 14 | . . . . . . 1 . . . . 1 . . . 3 . . 1 . 1 1 . 2 . 2 . 2 Propulsion 38 | . . 2 . . . . . . 3 2 3 . . . 2 1 . 2 4 2 . 1 3 1 5 . 7 Utility 35 | . . 2 . . . 2 . . 2 5 3 . . . 2 . 1 . . 1 . . 2 1 . . 14 Weapon 12 | . . 1 . . . . . . 1 . 5 . . . 1 1 . . . . 1 . 2 . . . . Highest Loss Streak 12 | . . 2 . . . 1 . . 6 4 10 . . . 6 2 1 3 4 4 2 1 6 1 5 . 12 To Critical Strikes 1 | . . . . . . . . . 1 . . . . . . . . . . . . . . . . . . Average Backups 12 | 2 9 19 18 19 20 15 16 18 19 7 8 10 9 9 8 9 8 10 8 5 4 4 4 7 8 9 7 Power 1 | . 1 1 2 1 1 . . . . . 2 2 2 3 1 1 1 1 . 1 . . 1 1 1 2 1 Propulsion 2 | . . 4 4 4 4 2 2 3 3 . . . . . 1 5 4 6 3 . . . . 3 1 . . Utility 5 | . 4 7 7 7 9 8 11 11 12 4 4 5 4 3 2 . 1 1 1 2 2 1 1 1 3 5 3 Weapon 3 | 1 2 5 5 6 6 4 3 3 2 1 2 3 2 2 2 1 1 1 1 1 . 1 1 2 1 2 2 Tool/Special . | . . . . . . . . . . . . . . . . . . . . . . . . . . . . Unused Backups 37 | . . 7 . 1 . 2 . 1 9 1 1 . 5 2 2 . . . . . . . . . 3 . 3 Power 5 | . . 2 . 1 . . . . . . . . 1 . 1 . . . . . . . . . . . . Propulsion 3 | . . 2 . . . . . . . . . . 1 . . . . . . . . . . . . . . Utility 18 | . . 2 . . . 1 . . 8 . 1 . 2 2 . . . . . . . . . . 1 . 1 Weapon 11 | . . 1 . . . 1 . 1 1 1 . . 1 . 1 . . . . . . . . . 2 . 2 Tool/Special . | . . . . . . . . . . . . . . . . . . . . . . . . . . . . Average Slot Usage (%) 87 | . 99 94 100 77 77 96 95 94 89 81 46 69 84 90 93 83 86 98 80 53 49 68 81 91 87 83 78 Engine 6 | . 14 11 11 11 11 8 9 7 5 6 . . . . 1 5 5 5 6 1 3 8 2 . . 4 . Treads 12 | . 27 30 33 33 33 . 36 30 26 . 1 15 . . . . . . . . . . . . . . . Leg 5 | . . . . . . 35 . . . 22 1 . . . . . . . . . . . . . . . 5 Hover 1 | . . . . . . . . . . . 1 7 . . . . 5 33 17 . . . 4 25 7 . . Flight 7 | . . . . . . . . . . . . . 25 33 34 29 22 . 11 10 8 15 19 2 16 20 10 Device 6 | . 14 9 11 11 11 3 1 6 5 3 2 7 . . 2 11 7 5 . 1 1 . 1 3 3 7 13 Storage 8 | . 14 11 11 11 11 17 16 7 6 6 7 7 6 5 5 5 5 5 4 . . . . 3 4 4 3 Processor 8 | . . . . . . . . 14 15 23 15 15 18 11 7 5 5 5 5 5 5 7 18 24 26 24 23 Hackware 6 | . . . . . . . . . . . . . 19 26 25 17 20 29 26 26 26 28 19 12 10 8 5 Protection 5 | . . 9 11 11 11 12 13 9 12 5 . . . . . . . . . . . . . . 1 4 1 Energy Cannon 3 | . . 17 22 . . . . . . . 1 7 . . . . . . . . . 1 2 . . . . Ballistic Gun 2 | . 19 2 . . . . . . . 5 10 7 . . . . . . . . . . . . . . . Impact Weapon 2 | . . . . . . 17 7 . . . . . . . . . . . . . . . . . . . . Slashing Weapon 3 | . . . . . . . 10 14 7 4 . . 5 4 7 3 10 11 7 5 . 1 3 . 5 8 7 Peak Build Rating 189 | 7 10 22 20 17 14 30 35 44 44 42 49 49 60 71 70 67 80 73 86 58 55 105 136 149 178 180 189 Average Rating 51 | 4 7 17 19 14 14 24 29 40 39 35 28 49 51 62 63 61 66 71 62 47 44 70 110 143 160 179 160 On Entrance 56 | . 7 10 19 20 14 14 28 30 44 8 40 49 49 52 65 70 65 72 60 57 53 43 99 131 141 173 180 Avg Prop Armor Cover (%) 5 | . . 12 . . . 10 . . . . 3 3 15 6 6 . . . 8 . . . 4 2 5 . 6 Naked Turns . | . . . . . . . . . . . . . . . . . . . . . . . . . . . . Heaviest Build 79 | 15 48 62 60 52 52 62 74 79 78 41 36 30 30 18 31 40 29 25 39 14 19 27 26 53 59 40 69 Greatest Support 93 | 40 40 63 63 63 63 80 82 82 82 50 48 48 48 31 31 33 54 54 69 17 12 33 37 84 74 62 93 Greatest Overweight (x) 10 | . 1 3 . . . 3 1 . 1 1 10 . 1 . 1 1 8 . 1 . 6 . 1 . 1 . 3 Average Overweight (x) . | . . . . . . 1 . . . . 3 . . . . . . . . . . . . . . . . Largest Inventory Capacity 20 | 8 20 20 20 20 20 20 20 20 20 20 10 10 10 10 10 10 10 10 15 5 5 5 5 10 10 10 10 Average Capacity 14 | 7 16 20 20 20 20 20 20 20 19 8 10 10 10 9 10 10 10 10 12 5 5 5 5 9 10 10 9 Most Carried 20 | 5 19 20 19 20 20 20 19 20 20 10 10 10 10 10 10 10 10 10 14 5 5 5 5 10 10 10 10 Average Carried 12 | 2 9 19 18 19 20 15 16 18 19 7 8 10 9 9 9 9 8 10 8 4 4 4 4 8 9 10 7 Final Capacity 20 | 8 20 20 20 20 20 20 20 20 5 10 10 10 10 10 10 10 10 10 5 5 5 5 5 10 10 10 5 Final Carried 20 | 3 19 17 19 20 20 17 19 20 5 10 10 10 10 10 10 10 10 10 5 5 4 5 5 10 10 10 5 Class Distribution -------------------- 31% | Mutant 23% | Scavenger-Mutant 8% | Hacker-Scout 7% | Hacker-Sprinter 7% | Scavenger-Gladiator 4% | Scavenger-Sprinter 3% | Hacker-Gladiator 3% | Wizard-Mutant Dominant Class ---------------- Mutant | -10/Materials Scavenger-Mutant | -9/Materials Scavenger-Mutant | -9/Mines Scavenger-Mutant | -9/Exiles Scavenger-Mutant | -8/Mines Mutant | -8/Materials Scavenger-Mutant | -8/Storage Scavenger-Gladiator | -7/Factory Mutant | -7/Waste Mutant | -7/Factory Mutant | -7/Lower Caves Mutant | -7/Lower Caves Hacker-Scout | -6/Factory Hacker-Scout | -5/Factory Hacker-Sprinter | -5/Extension Hacker-Sprinter | -5/Cetus Hacker-Sprinter | -5/Archives Scavenger-Mutant | -5/Hub_04(d) Wizard-Mutant | -4/Factory Wizard-Mutant | -4/Upper Caves Wizard-Mutant | -4/Upper Caves Wizard-Sprinter | -4/Warlord Wizard-Sprinter | -3/Proximity Caves Hacker-Gladiator | -3/Research Hacker-Sprinter | -2/Research Scavenger-Sprinter | -1/Access Scavenger-Gladiator | -1/Command Resources | -11 -10 -9 -9 -9 -8 -8 -8 -7 -7 -7 -7 -7 -6 -5 -5 -5 -5 -5 -4 -4 -4 -4 -3 -3 -2 -1 -1 ----------- Run | Yrd Mat Mat Min Exi Min Mat Sto Fac Was Fac Low Low Fac Fac Ext Cet Arc Hub Fac Upp Upp War Pro Res Res Acc Com Matter Collected 6016 | 309 183 561 . . 21 180 243 166 107 960 549 . 360 56 454 155 295 . 244 71 74 171 227 124 386 . 120 Remotely . | . . . . . . . . . . . . . . . . . . . . . . . . . . . . Salvage Created 15140 | 218 494 2653 117 . . 1733 442 963 224 1126 729 . 822 106 937 110 510 57 454 199 112 15 558 513 967 . 1081 Parts 645 | 16 31 146 9 . . 48 20 51 . 54 32 . 36 6 28 2 27 6 21 6 1 1 10 24 26 . 44 Haulers Intercepted 28 | . 1 6 . . . 5 3 1 . 2 . . 3 . . . . . 2 . . . . 2 3 . . Recyclers Shooed 14 | . 4 7 . . . 2 . . . 1 . . . . . . . . . . . . . . . . . Parts Field Recycled . | . . . . . . . . . . . . . . . . . . . . . . . . . . . . Retrieved Matter . | . . . . . . . . . . . . . . . . . . . . . . . . . . . . Parts Self-Destructed 40 | . . . . . . . . . . . 29 . . . . . . . . 4 1 . 6 . . . . Prevented . | . . . . . . . . . . . . . . . . . . . . . . . . . . . . Parts Restored . | . . . . . . . . . . . . . . . . . . . . . . . . . . . . Kills | -11 -10 -9 -9 -9 -8 -8 -8 -7 -7 -7 -7 -7 -6 -5 -5 -5 -5 -5 -4 -4 -4 -4 -3 -3 -2 -1 -1 ------- Run | Yrd Mat Mat Min Exi Min Mat Sto Fac Was Fac Low Low Fac Fac Ext Cet Arc Hub Fac Upp Upp War Pro Res Res Acc Com Combat Hostiles Destroyed 174 | . 5 37 3 . . 22 3 17 3 14 20 . 3 . 5 1 3 1 2 5 2 1 8 2 5 . 12 Melee 69 | . . . . . . 10 2 14 . 3 . . . . 5 . 3 1 . 5 . 1 6 2 5 . 12 Guns 41 | . 5 11 . . . . . . . 11 13 . . . . . . . . . . . 1 . . . . Cannons 30 | . . 25 3 . . . . . . . 1 . . . . . . . . . . . 1 . . . . AOE 22 | . . . . . . 2 . 3 3 . 6 . 3 . . 1 . . 2 . 2 . . . . . . Classes Destroyed 19 | 3 6 4 1 . . 1 . 1 1 . . . . . . . . . . . . . 1 . 1 . . Worker 17 | 2 1 2 1 . . 2 . 1 . 2 . . 1 2 . . . . . . . . . 1 1 . 1 Builder 10 | . . 3 . . . 1 1 . . 1 . . 2 . 1 . . . . . . . . . 1 . . Tunneler 8 | 4 1 . 1 . . 1 . 1 . . . . . . . . . . . . . . . . . . . Hauler 28 | . 1 6 . . . 5 3 1 . 2 . . 3 . . . . . 2 . . . . 2 3 . . Recycler 30 | 1 2 6 1 . . 4 1 1 . 4 . . 1 . 6 . . . 1 . . . . . 1 . 1 Mechanic 9 | . 1 . . . . . . . . 1 . . 3 1 . . . . . . . . . 2 1 . . Operator 24 | . 1 2 . . . 1 1 . . 1 . . 1 . . . 9 . 2 . . . . 1 2 . 3 Drone 2 | . . . . . . . . . . . . . . . . . . . . . . . 2 . . . . Watcher 30 | . 3 5 . . . 4 1 1 . . . . 5 1 2 1 . . 1 . . . . 1 2 . 3 Swarmer 47 | . 3 3 . . . 1 . 6 . 5 6 . 3 . 4 . . . . 5 2 1 3 . 1 . 4 Grunt 58 | . 2 22 . . . 12 1 4 . 5 7 . . . . . . . . . . . 3 . 2 . . Brawler 4 | . . 1 . . . 1 . . . . 2 . . . . . . . . . . . . . . . . Duelist 5 | . . 2 . . . 1 . . . . 2 . . . . . . . . . . . . . . . . Sentry 32 | . . 9 . . . 6 2 3 1 2 2 . . . 1 . 3 . . . . . . . 1 . 2 Hunter 3 | . . . . . . 1 . . . . . . . . . . . 1 . . . . . . . . 1 Programmer 15 | . . . . . . . . 4 . 2 1 . . . . . . . 2 . . . . 2 . . 4 Compactor 2 | . . . . . . . . . 2 . . . . . . . . . . . . . . . . . . Cetus Guard 1 | . . . . . . . . . . . . . . . . 1 . . . . . . . . . . . M Guard 1 | . . . . . . . . . . . . . . . . . . . . . . . . . . . 1 Striker 1 | . . . . . . . . . . . . . . . . . . . . . . . . . 1 . . Packrat 1 | . . . . . . . . . . . . . . . . . . . . 1 . . . . . . . Assembled 3 | . . . 3 . . . . . . . . . . . . . . . . . . . . . . . . Savage 1 | . . . . . . . . . . . . . . . . . 1 . . . . . . . . . . Butcher 1 | . . . . . . . . . . . . . . . . 1 . . . . . . . . . . . Guerrilla 1 | . . . . . . . . . . . . . . . . 1 . . . . . . . . . . . Best Kill Streak 7 | 5 3 5 3 . . 7 2 5 2 5 6 . 4 2 6 2 7 1 2 5 2 1 3 2 5 . 6 Combat Bots Only 6 | . 1 4 2 . . 4 2 5 2 5 6 . 3 . 4 1 1 1 2 5 2 1 3 2 1 . 4 Max Kills in Single Turn 3 | 1 1 1 2 . . 2 1 3 1 2 2 . 2 1 3 1 1 1 1 1 2 1 1 1 1 . 2 Gunslinging . | . . . . . . . . . . . . . . . . . . . . . . . . . . . . Exploded 3 | . . . . . . 1 . 3 1 . 2 . 2 . . 1 . . 1 . 2 . . . . . . Melee 2 | . . . . . . 1 1 1 . 1 . . . . 1 . 1 1 . 1 . 1 1 1 1 . 2 Uniques/NPCs Destroyed . | . . . . . . . . . . . . . . . . . . . . . . . . . . . . Combat | -11 -10 -9 -9 -9 -8 -8 -8 -7 -7 -7 -7 -7 -6 -5 -5 -5 -5 -5 -4 -4 -4 -4 -3 -3 -2 -1 -1 -------- Run | Yrd Mat Mat Min Exi Min Mat Sto Fac Was Fac Low Low Fac Fac Ext Cet Arc Hub Fac Upp Upp War Pro Res Res Acc Com Hostile Shots Fired 1259 | . 28 120 7 . . 84 24 127 30 152 148 . 33 2 47 15 12 22 16 31 27 15 69 26 30 3 191 Missed 436 | . 5 43 4 . . 33 7 45 12 34 40 . 24 . 17 9 7 9 4 11 16 7 18 10 9 1 71 Intercepted 3 | . . . . . . . . . . . . . . . . . . . . . . . . . . . 3 Hits 823 | . 23 77 3 . . 51 17 82 18 118 108 . 9 2 30 6 5 13 12 20 11 8 51 16 21 2 120 Melee 22 | . . . . . . 4 . . 5 . 9 . . . . . . . . . . . . . 4 . . Projectile 801 | . 23 77 3 . . 47 17 82 13 118 99 . 9 2 30 6 5 13 12 20 11 8 51 16 17 2 120 AOE 6 | . . . . . . . . . . . . . . . . . . . . . . . . . . . 6 Critical Strikes 39 | . . 1 . . . 3 2 3 4 4 2 . . . 3 1 . 2 1 . . . 4 1 1 . 7 Actively Blocked 6 | . . . . . . . . . . . . . . . . . . . . . . . . . . . 6 Part Disruptions 8 | . . . . . . . . . . . . . . . . . . . . . . . . . . . 8 Damage Taken 15464 | . 285 1005 25 . . 703 272 1026 324 1258 1755 . 139 73 831 146 137 262 249 294 214 156 1098 382 747 25 4058 Core 4063 | . 65 80 . . . 151 28 97 152 152 285 . 123 24 291 26 29 34 . 139 54 42 408 69 206 . 1608 Absorbed by Shields 545 | . . . . . . 147 . . . 48 36 . . . 46 . . . . . . . . . . . 268 Regen/Repaired (Parts) 70 | . . . . . . . . . . . . . . 14 . . . . . . . 5 . 28 23 . . Core Remaining (%) 69 | 100 74 . . . 80 . 67 . . . . 2 85 . . . . 59 . . . . 44 94 85 . . Volleys Fired 445 | 51 59 158 9 . . 4 . 2 19 44 57 . 4 6 6 6 4 . 4 . 1 . 11 . . . . Largest 2 | 1 2 2 2 . . 1 . 1 1 2 2 . 1 1 2 2 1 . 1 . 1 . 2 . . . . Hottest 136 | 20 80 136 136 . . 36 . 39 39 56 103 . 43 81 86 86 43 . 43 . 43 . 60 . . . . Shots Fired 720 | 51 111 275 18 . . 4 . 2 19 84 100 1 4 6 12 12 4 . 4 . 1 . 12 . . . . Gun 455 | 51 111 108 . . . . . . . 84 91 1 . . . . . . . . . . 9 . . . . Cannon 198 | . . 167 18 . . . . . . . 5 . . 5 . . . . . . . . 3 . . . . Launcher 67 | . . . . . . 4 . 2 19 . 4 . 4 1 12 12 4 . 4 . 1 . . . . . . Special . | . . . . . . . . . . . . . . . . . . . . . . . . . . . . Kinetic 389 | 51 91 62 . . . . . . . 84 91 1 . . . . . . . . . . 9 . . . . Thermal 190 | . . 167 18 . . . . . . . 5 . . . . . . . . . . . . . . . . Explosive 63 | . . . . . . . . 2 19 . 4 . 4 1 12 12 4 . 4 . 1 . . . . . . Electromagnetic 75 | . 20 46 . . . 4 . . . . . . . 5 . . . . . . . . . . . . . Entropic 3 | . . . . . . . . . . . . . . . . . . . . . . . 3 . . . . Robot Hit Streak 22 | 8 22 16 3 . . 6 . 1 8 10 13 . 1 . 6 8 4 . 6 . 2 . 6 . . . . Robot Miss Streak 6 | 3 4 5 1 . . 1 . . 1 3 6 . 1 . 1 2 . . 1 . . . 3 . . . . Penetration Max 1 | . . . . . . . . . . 1 1 . . . . . . . . . . . . . . . . Secondary Targets . | . . . . . . . . . . . . . . . . . . . . . . . . . . . . Shots Hit Robots 889 | 30 70 166 8 . . 74 23 48 16 75 69 . 33 8 38 7 24 5 12 8 2 1 31 21 48 1 71 Core Hits 455 | 16 32 73 7 . . 18 6 25 7 33 50 . 18 3 31 27 22 2 9 6 5 1 15 10 15 . 24 Critical Kills 4 | . . 2 . . . 2 . . . . . . . . . . . . . . . . . . . . . Critical Parts Destroyed 14 | . . . . . . 12 . . . 1 1 . . . . . . . . . . . . . . . . Critical Strikes 52 | . . 4 . . . 14 . 5 . 5 1 . 2 1 5 . . . 1 . . . 5 1 7 . 1 Meltdown 2 | . . 2 . . . . . . . . . . . . . . . . . . . . . . . . . Destroy 2 | . . . . . . . . . . 1 1 . . . . . . . . . . . . . . . . Corrupt 2 | . . 2 . . . . . . . . . . . . . . . . . . . . . . . . . Smash 14 | . . . . . . 14 . . . . . . . . . . . . . . . . . . . . . Sever 28 | . . . . . . . . 5 . 4 . . 2 1 5 . . . 1 . . . 4 . 5 . 1 Impale 3 | . . . . . . . . . . . . . . . . . . . . . . . . 1 2 . . Sunder 1 | . . . . . . . . . . . . . . . . . . . . . . . 1 . . . . Melee Attacks 639 | . . . . . . 94 28 70 . 27 . . 66 24 38 3 24 10 16 12 1 1 31 31 58 13 92 Impact 105 | . . . . . . 94 11 . . . . . . . . . . . . . . . . . . . . Slashing 495 | . . . . . . . 17 70 . 27 . . 66 24 38 3 24 10 16 12 1 1 31 . 50 13 92 Piercing 39 | . . . . . . . . . . . . . . . . . . . . . . . . 31 8 . . Sneak Attacks 93 | . . . . . . 20 11 5 . 6 . . 8 3 2 2 8 1 4 1 . . . 8 11 . 3 Combat Hostiles 3 | . . . . . . . . . . . . . . . . . . . . . . . . . 2 . 1 Follow-up Attacks 54 | . . . . . . 14 4 12 . . . . . . . . 1 . . . . . . 4 9 . 10 Damage Inflicted 38276 | 240 708 3009 184 . . 3616 1134 2049 1605 2213 2054 . 2038 386 2427 1087 1615 201 723 297 270 39 1220 1374 3741 68 5978 Guns 4344 | 240 633 959 . . . . . . . 1073 1326 . . . . . . . . . . . 113 . . . . Cannons 2546 | . . 2050 184 . . . . . . . 100 . . . . . . . . . . . 212 . . . . Explosions 6317 | . 75 . . . . 298 . 242 1605 . 628 . 493 . 1287 940 300 . 230 . 219 . . . . . . Melee 25040 | . . . . . . 3318 1134 1807 . 1114 . . 1545 386 1140 147 1315 198 493 297 51 39 895 1374 3741 68 5978 Ramming 29 | . . . . . . . . . . 26 . . . . . . . 3 . . . . . . . . . Kinetic 3750 | 240 445 553 . . . . . . . 1073 1326 . . . . . . . . . . . 113 . . . . Thermal 2813 | . 75 2050 184 . . 9 . . . . 100 . 395 . . . . . . . . . . . . . . Explosive 5549 | . . . . . . . . 242 1605 . 628 . 98 . 1287 940 300 . 230 . 219 . . . . . . Electromagnetic 883 | . 188 406 . . . 289 . . . . . . . . . . . . . . . . . . . . . Impact 3864 | . . . . . . 3318 546 . . . . . . . . . . . . . . . . . . . . Slashing 19063 | . . . . . . . 588 1807 . 1114 . . 1545 386 1140 147 1315 198 493 297 51 39 895 . 3002 68 5978 Piercing 2113 | . . . . . . . . . . . . . . . . . . . . . . . . 1374 739 . . Entropic 212 | . . . . . . . . . . . . . . . . . . . . . . . 212 . . . . Highest Corruption 29 | . . 1 1 1 1 20 20 2 24 24 22 22 . . 1 1 1 1 1 1 1 1 . 1 8 . 29 Average Corruption 7 | . . 1 1 1 1 16 20 1 13 19 21 22 . . 1 1 1 1 1 1 1 1 . 1 8 . 3 Corruption Purged 10 | . . . . . . . . . . 10 . . . . . . . . . . . . . . . . . Corruption Blocked . | . . . . . . . . . . . . . . . . . . . . . . . . . . . . Effects 249 | . . 9 9 6 1 1 40 6 13 59 54 3 . . 8 2 3 2 1 . . . . 4 12 . 16 Message Errors 57 | . . . 5 1 . . 5 3 4 17 11 1 . . 2 . 1 1 . . . . . 1 3 . 2 Matter Fused 60 | . . 2 . 3 . . 13 1 2 16 14 1 . . 3 . 2 . . . . . . . 2 . 1 Heat Flow Errors 27 | . . . . 1 . . 5 . 2 6 6 . . . . . . . 1 . . . . . 3 . 3 Energy Discharges 34 | . . 5 . . 1 . 10 1 . 7 5 . . . . 1 . 1 . . . . . . . . 3 Parts Rejected 3 | . . . . . . . . . . 1 1 . . . . . . . . . . . . . . . 1 Parts Fused 2 | . . 1 . . . . . . . . . . . . . . . . . . . . . . 1 . . Data Loss (minor) 36 | . . . 3 1 . 1 4 . 2 5 7 . . . 3 . . . . . . . . 3 3 . 4 Data Loss (major) 9 | . . . 1 . . . . 1 2 2 1 . . . . 1 . . . . . . . . . . 1 Misfires 5 | . . 1 . . . . . . . . 3 1 . . . . . . . . . . . . . . . Alerts 4 | . . . . . . . . . . 1 3 . . . . . . . . . . . . . . . . Misdirections 5 | . . . . . . . 3 . 1 . . . . . . . . . . . . . . . . . 1 Weapon Failures 7 | . . . . . . . . . . 4 3 . . . . . . . . . . . . . . . . Overload Shots . | . . . . . . . . . . . . . . . . . . . . . . . . . . . . Overflow Damage 4015 | . . 32 . . . 1091 255 106 . 34 59 . 273 60 121 47 336 . 110 6 33 . 85 279 453 . 635 Projectiles 80 | . . 32 . . . . . . . . . . . . . . . . . . . . 48 . . . . Explosions 364 | . . . . . . 4 . 26 . . 59 . 195 . 56 . 24 . . . . . . . . . . Melee 3571 | . . . . . . 1087 255 80 . 34 . . 78 60 65 47 312 . 110 6 33 . 37 279 453 . 635 Knockbacks 13 | . . . . . . 13 . . . . . . . . . . . . . . . . . . . . . Impact 13 | . . . . . . 13 . . . . . . . . . . . . . . . . . . . . . Kinetic . | . . . . . . . . . . . . . . . . . . . . . . . . . . . . Secondary . | . . . . . . . . . . . . . . . . . . . . . . . . . . . . Self-Inflicted Damage 174 | . 34 . . . . 30 . 63 . . 41 . . . . 5 . 1 . . . . . . . . . Shots 7 | . 1 . . . . 3 . 1 . . 1 . . . . 1 . . . . . . . . . . . Rammed 1 | . . . . . . . . . . . . . . . . . . 1 . . . . . . . . . Targets Rammed 2 | . . . . . . . . . . 1 . . . . . . . 1 . . . . . . . . . Kicked 1 | . . . . . . . . . . 1 . . . . . . . . . . . . . . . . . Crushed . | . . . . . . . . . . . . . . . . . . . . . . . . . . . . Highest Temperature 432 | . 60 425 138 243 . 9 240 5 157 262 274 . 152 432 16 . . . 162 . . 8 36 348 250 . 118 Average Temperature 89 | . 19 103 64 131 . 3 76 3 20 78 102 . 68 110 7 . . . 34 . . 2 11 229 90 . 8 Received Heat Transfer 2599 | . 90 420 . . . 280 171 108 . 304 426 . 18 9 112 9 18 45 24 . . 12 217 . 108 . 228 Effects 13 | . . 10 . . . . . . . . . . . . . . . . . . . . . 3 . . . Shutdowns 2 | . . 2 . . . . . . . . . . . . . . . . . . . . . . . . . Energy Bleed 2 | . . 2 . . . . . . . . . . . . . . . . . . . . . . . . . Interference 7 | . . 5 . . . . . . . . . . . . . . . . . . . . . 2 . . . Matter Decay 2 | . . 1 . . . . . . . . . . . . . . . . . . . . . 1 . . . Siege Activations . | . . . . . . . . . . . . . . . . . . . . . . . . . . . . Martial Activations . | . . . . . . . . . . . . . . . . . . . . . . . . . . . . Shielding Activations . | . . . . . . . . . . . . . . . . . . . . . . . . . . . . Robots Disrupted . | . . . . . . . . . . . . . . . . . . . . . . . . . . . . Combat Hostiles . | . . . . . . . . . . . . . . . . . . . . . . . . . . . . Robots Corrupted 24 | . . 2 . . . 20 2 . . . . . . . . . . . . . . . . . . . . Combat Hostiles 11 | . . . . . . 10 1 . . . . . . . . . . . . . . . . . . . . Parts Fried 38 | . 2 3 . . . 32 1 . . . . . . . . . . . . . . . . . . . . Impact Corruptions 50 | . . . . . . 43 6 . . 1 . . . . . . . . . . . . . . . . . Robots Melted 2 | . . 2 . . . . . . . . . . . . . . . . . . . . . . . . . Combat Hostiles 1 | . . 1 . . . . . . . . . . . . . . . . . . . . . . . . . Parts Melted 14 | . . 12 . . . . . 1 . . . . . . . . . . . . . . . . . . 1 Heat Transferred 4389 | . 100 3508 333 . . 50 . . . . 148 . 250 . . . . . . . . . . . . . . Parts Sabotaged . | . . . . . . . . . . . . . . . . . . . . . . . . . . . . Parts Stolen . | . . . . . . . . . . . . . . . . . . . . . . . . . . . . Parts Stripped . | . . . . . . . . . . . . . . . . . . . . . . . . . . . . Power Chain Reactions 3 | . 2 . . . . 1 . . . . . . . . . . . . . . . . . . . . . Alert | -11 -10 -9 -9 -9 -8 -8 -8 -7 -7 -7 -7 -7 -6 -5 -5 -5 -5 -5 -4 -4 -4 -4 -3 -3 -2 -1 -1 ------- Run | Yrd Mat Mat Min Exi Min Mat Sto Fac Was Fac Low Low Fac Fac Ext Cet Arc Hub Fac Upp Upp War Pro Res Res Acc Com Maximum Alert Level 2 | . . 2 1 . . 1 2 . . 1 . . 1 1 1 1 . 1 . . . . . 1 . . 1 Low Security (%) 78 | 100 100 53 92 . 100 97 33 100 100 72 . . 73 95 35 4 100 99 100 . . . . 44 100 100 79 Level 1 18 | . . 28 7 . . 2 54 . . 27 . . 26 4 64 95 . . . . . . . 55 . . 20 Level 2 2 | . . 17 . . . . 12 . . . . . . . . . . . . . . . . . . . . Level 3 . | . . . . . . . . . . . . . . . . . . . . . . . . . . . . Level 4 . | . . . . . . . . . . . . . . . . . . . . . . . . . . . . Level 5 . | . . . . . . . . . . . . . . . . . . . . . . . . . . . . High Security . | . . . . . . . . . . . . . . . . . . . . . . . . . . . . Max Security . | . . . . . . . . . . . . . . . . . . . . . . . . . . . . Peak Influence 513 | 15 83 513 243 . . 213 433 188 84 296 . . 336 208 328 336 155 209 147 . . . . 341 187 104 290 Initial 331 | . 3 . 195 . . . 74 107 64 . . . 11 158 93 179 110 31 97 . . . . 331 71 104 46 Average 119 | 2 13 207 52 . . 111 262 59 53 86 . . 85 135 209 296 123 60 81 . . . . 238 48 77 125 Influence Increases 10294 | 35 249 1218 154 . . 901 835 516 80 488 440 . 649 264 1021 257 250 278 320 170 60 20 310 570 557 99 553 Destroy 0b10 Robot/C 4336 | . 100 740 100 . . 520 420 340 20 276 400 . 60 . 480 80 80 20 40 100 40 20 120 40 100 . 240 Destroy 0b10 Robot/NC 840 | 35 50 120 15 . . 90 50 25 . 50 . . 80 20 70 5 45 . 30 . 5 . 20 30 55 . 45 Destroy Leader 988 | . 28 222 20 . . 138 142 94 . 72 40 . 26 2 46 . . 10 16 10 . . 20 16 30 . 56 Allied During Kill 582 | . . . 19 . . 33 200 . . . . . . . 275 48 7 . . . . . . . . . . Successful Hack 429 | . 4 88 . . . 21 23 . . . . . 63 32 14 . . . 38 . . . . 84 . 42 20 Select Force Hacks 150 | . . . . . . . . . . . . . . . . . . 150 . . . . . . . . . Disable Machine 525 | . 15 45 . . . 30 . 30 . 15 . . 225 60 15 30 30 . 15 . . . . . . 15 . Anti-Garrison Action 150 | . . . . . . . . . . . . . . . . . . . . . . . . . 150 . . Destroy Structure 704 | . 7 3 . . . 9 . 12 60 . . . 90 120 76 94 28 8 106 . . . . 10 12 27 42 Advance Influence 300 | . . . . . . . . . . . . . . . . . . . . . . . . 300 . . . Partial Spotted 165 | . . . . . . . . . . . . . 45 15 15 . . . 15 . . . . . 45 . 30 Lose Combat Pursuer 1125 | . 45 . . . . 60 . 15 . 75 . . 60 15 30 . 60 90 60 60 15 . 150 90 165 15 120 Influence Decreases 10294 | 30 254 717 655 . . 723 776 569 264 222 658 30 343 396 893 301 436 169 388 180 94 97 273 490 510 200 626 Entered New Map 1851 | . 2 . 306 . . . 104 130 120 . 99 10 7 166 99 141 166 59 102 50 24 87 10 16 56 70 27 Time Decay 6665 | 30 252 667 349 . . 633 392 439 104 192 438 20 336 230 494 100 180 80 246 90 50 . 173 254 312 130 474 Search Patrol Dispatched 200 | . . . . . . . . . . . . . . . . . . . . . . . . 200 . . . Lost Part 787 | . . 50 . . . 30 . . 40 30 120 . . . 80 20 10 30 40 40 20 10 90 20 32 . 125 Lost Ally 791 | . . . . . . 60 280 . . . 1 . . . 220 40 80 . . . . . . . 110 . . Squads Dispatched 67 | . 2 6 . . . 5 6 4 . 8 . . 7 4 2 . . 9 4 . . . . 1 1 1 7 Investigation 25 | . 1 2 . . . 4 1 1 . 2 . . 2 2 1 . . 7 . . . . . . 1 . 1 Extermination 19 | . . . . . . . . 3 . 2 . . 5 2 . . . . 2 . . . . 1 . 1 3 Reinforcement 15 | . 1 2 . . . 1 2 . . 1 . . . . 1 . . 2 2 . . . . . . . 3 Assault 2 | . . 2 . . . . . . . . . . . . . . . . . . . . . . . . . Garrison 6 | . . . . . . . 3 . . 3 . . . . . . . . . . . . . . . . . Intercept . | . . . . . . . . . . . . . . . . . . . . . . . . . . . . Searches Triggered 2 | . . . . . . . . . . . . . . . . . . . . . . . . 2 . . . Construction Impeded 1 | . . . . . . . . . . . . . . . 1 . . . . . . . . . . . . Haulers Reinforced . | . . . . . . . . . . . . . . . . . . . . . . . . . . . . Active Scanning Responses . | . . . . . . . . . . . . . . . . . . . . . . . . . . . . Cargo Convoy Interrupts . | . . . . . . . . . . . . . . . . . . . . . . . . . . . . Stealth | -11 -10 -9 -9 -9 -8 -8 -8 -7 -7 -7 -7 -7 -6 -5 -5 -5 -5 -5 -4 -4 -4 -4 -3 -3 -2 -1 -1 --------- Run | Yrd Mat Mat Min Exi Min Mat Sto Fac Was Fac Low Low Fac Fac Ext Cet Arc Hub Fac Upp Upp War Pro Res Res Acc Com Distress Signals 36 | . 2 4 . . . 2 6 . . . . . . . 2 1 1 . 1 . . 1 . 1 10 1 4 Communications Jammed . | . . . . . . . . . . . . . . . . . . . . . . . . . . . . Distress Signals . | . . . . . . . . . . . . . . . . . . . . . . . . . . . . Times Spotted 411 | . 13 47 8 . . 35 20 23 7 20 20 . 18 3 27 3 10 14 10 9 5 18 14 16 31 4 36 Peak Tracking Total 13 | . 3 5 3 . . 4 7 4 3 4 7 . 3 1 5 5 2 13 6 5 5 11 4 7 10 4 6 Tactical Retreats 40 | . 2 . . . . 2 . 1 . 4 . . 3 1 1 . 4 2 2 1 1 . 5 2 5 1 3 Traps | -11 -10 -9 -9 -9 -8 -8 -8 -7 -7 -7 -7 -7 -6 -5 -5 -5 -5 -5 -4 -4 -4 -4 -3 -3 -2 -1 -1 ------- Run | Yrd Mat Mat Min Exi Min Mat Sto Fac Was Fac Low Low Fac Fac Ext Cet Arc Hub Fac Upp Upp War Pro Res Res Acc Com Traps Triggered 26 | . 1 3 . . . . 2 1 . 4 . . 4 4 4 . . 1 1 . . . . . . . 1 Indirectly . | . . . . . . . . . . . . . . . . . . . . . . . . . . . . Trap Hack Attempts . | . . . . . . . . . . . . . . . . . . . . . . . . . . . . Triggered . | . . . . . . . . . . . . . . . . . . . . . . . . . . . . Disarmed . | . . . . . . . . . . . . . . . . . . . . . . . . . . . . Reprogrammed . | . . . . . . . . . . . . . . . . . . . . . . . . . . . . Reused . | . . . . . . . . . . . . . . . . . . . . . . . . . . . . Traps Extracted . | . . . . . . . . . . . . . . . . . . . . . . . . . . . . Installed . | . . . . . . . . . . . . . . . . . . . . . . . . . . . . Triggered . | . . . . . . . . . . . . . . . . . . . . . . . . . . . . Machines | -11 -10 -9 -9 -9 -8 -8 -8 -7 -7 -7 -7 -7 -6 -5 -5 -5 -5 -5 -4 -4 -4 -4 -3 -3 -2 -1 -1 ---------- Run | Yrd Mat Mat Min Exi Min Mat Sto Fac Was Fac Low Low Fac Fac Ext Cet Arc Hub Fac Upp Upp War Pro Res Res Acc Com Machines Disabled 40 | . 1 3 . . . 2 . 2 . 1 . . 15 4 4 2 2 . 1 . . 1 . . 1 1 . Max in Single Turn 11 | . 1 1 . . . 1 . 1 . 1 . . 11 1 1 1 2 . 1 . . 1 . . 1 1 . Garrison Access 8 | . . . . . . . 1 . . 1 . . 2 1 . . . . 1 . . . . 1 1 . . Network Hub 3 | . . . . . . . . . . . . . . . . . . 3 . . . . . . . . . Machines Repaired . | . . . . . . . . . . . . . . . . . . . . . . . . . . . . Machines Dismantled 3 | . . . . . . . . . . . . . . . 1 1 . . . . . 1 . . . . . Machines Sabotaged 3 | . . . . . . . . . . . . . . . . . . 3 . . . . . . . . . Overloaded Fab Kills . | . . . . . . . . . . . . . . . . . . . . . . . . . . . . Hacking | -11 -10 -9 -9 -9 -8 -8 -8 -7 -7 -7 -7 -7 -6 -5 -5 -5 -5 -5 -4 -4 -4 -4 -3 -3 -2 -1 -1 --------- Run | Yrd Mat Mat Min Exi Min Mat Sto Fac Was Fac Low Low Fac Fac Ext Cet Arc Hub Fac Upp Upp War Pro Res Res Acc Com Machines Accessed 124 | . 6 12 . 2 . 8 6 4 . 4 1 . 22 9 9 1 1 7 6 . . 6 . 8 . 6 6 Terminals 84 | . 4 9 . . . 8 5 3 . 1 . . 13 5 9 1 . 7 3 . . . . 4 . 6 6 Fabricators 6 | . . . . . . . . . . . . . 3 2 . . . . . . . . . 1 . . . Repair Stations 3 | . . . . . . . . . . . . . . 1 . . . . 1 . . . . 1 . . . Recycling Units 5 | . 2 2 . . . . . . . . . . . . . . . . . . . . . 1 . . . Scanalyzers 6 | . . 1 . . . . . . . 1 . . 3 . . . . . 1 . . . . . . . . Garrison Access 10 | . . . . . . . 1 1 . 2 . . 3 1 . . . . 1 . . . . 1 . . . Total Hacks 365 | . 19 34 . 2 . 27 14 7 . 6 1 . 60 27 12 4 25 11 13 . . 15 . 50 . 23 15 Successful 188 | . 9 18 . 2 . 12 8 . . 2 1 . 34 14 8 . 25 9 11 . . 15 . 9 . 7 4 Failed 175 | . 10 15 . . . 15 6 7 . 4 . . 25 13 4 4 . 2 2 . . . . 41 . 16 11 Catastrophic 43 | . 1 4 . . . 3 1 4 . 1 . . 3 3 . 2 . . . . . . . 13 . 4 4 Database Lockouts 2 | . . 1 . . . . . . . . . . 1 . . . . . . . . . . . . . . Manual 201 | . 15 31 . 1 . 27 11 4 . 2 . . 34 10 2 . 1 11 5 . . 1 . 27 . 9 10 Terminals 237 | . 12 24 . . . 27 13 4 . 2 . . 38 17 12 4 . 11 6 . . . . 29 . 23 15 Fabricators 19 | . . . . . . . . . . . . . 9 5 . . . . . . . . . 5 . . . Repair Stations 10 | . . . . . . . . . . . . . . 2 . . . . 2 . . . . 6 . . . Recycling Units 16 | . 7 6 . . . . . . . . . . . . . . . . . . . . . 3 . . . Scanalyzers 16 | . . 4 . . . . . . . 1 . . 8 . . . . . 3 . . . . . . . . Garrison Access 24 | . . . . . . . 1 3 . 3 . . 5 3 . . . . 2 . . . . 7 . . . Terminal Hacks 80 | . . 3 . 2 . 1 3 . . . 1 . 7 4 6 . 25 2 3 . . 15 . 1 . 4 3 Record 34 | . . . . 1 . . . . . . . . . . . . 25 . . . . 7 . 1 . . . Robot Analysis 6 | . . 3 . . . 1 . . . . . . . 2 . . . . . . . . . . . . . Prototype ID Bank 7 | . . . . . . . . . . . . . . . . . . . . . . 7 . . . . . Open Door 15 | . . . . . . . 2 . . . 1 . . 1 6 . . . . . . 1 . . . 3 1 Level Access Points 3 | . . . . . . . . . . . . . . . . . . 1 1 . . . . . . 1 . Branch Access Points 3 | . . . . . . . . . . . . . 1 1 . . . . 1 . . . . . . . . Terminal Index 5 | . . . . . . . 1 . . . . . 1 . . . . 1 1 . . . . . . . 1 Fabricator Index 1 | . . . . . . . . . . . . . 1 . . . . . . . . . . . . . . Surveillance Status 1 | . . . . . . . . . . . . . 1 . . . . . . . . . . . . . . Hauler Manifests 3 | . . . . . . . . . . . . . 3 . . . . . . . . . . . . . . Proto ID Catalog 1 | . . . . 1 . . . . . . . . . . . . . . . . . . . . . . . Disengage Seal 1 | . . . . . . . . . . . . . . . . . . . . . . . . . . . 1 Fabricator Hacks 9 | . . . . . . . . . . . . . 6 3 . . . . . . . . . . . . . Network Status 1 | . . . . . . . . . . . . . 1 . . . . . . . . . . . . . . Load Schematic 5 | . . . . . . . . . . . . . 3 2 . . . . . . . . . . . . . Build 3 | . . . . . . . . . . . . . 2 1 . . . . . . . . . . . . . Repair Station Hacks 7 | . . . . . . . . . . . . . . 2 . . . . 2 . . . . 3 . . . Scan Component 4 | . . . . . . . . . . . . . . 1 . . . . 1 . . . . 2 . . . Repair 3 | . . . . . . . . . . . . . . 1 . . . . 1 . . . . 1 . . . Recycling Unit Hacks 4 | . 1 2 . . . . . . . . . . . . . . . . . . . . . 1 . . . Retrieve Components 4 | . 1 2 . . . . . . . . . . . . . . . . . . . . . 1 . . . Scanalyzer 14 | . . 3 . . . . . . . 1 . . 7 . . . . . 3 . . . . . . . . Insert Component 2 | . . . . . . . . . . . . . 2 . . . . . . . . . . . . . . Analyze 2 | . . . . . . . . . . . . . 2 . . . . . . . . . . . . . . Retrieve Study 10 | . . 3 . . . . . . . 1 . . 3 . . . . . 3 . . . . . . . . Garrison Access Hacks 7 | . . . . . . . 1 . . 1 . . 2 1 . . . . 1 . . . . 1 . . . Seal Access 7 | . . . . . . . 1 . . 1 . . 2 1 . . . . 1 . . . . 1 . . . Unauthorized Hacks 67 | . 8 10 . . . 11 4 . . . . . 12 4 2 . . 7 2 . . . . 3 . 3 1 Terminals 63 | . 7 10 . . . 11 4 . . . . . 10 3 2 . . 7 2 . . . . 3 . 3 1 Assimilate 4 | . . . . . . . . . . . . . 1 . . . . . 1 . . . . 1 . 1 . Botnet 37 | . 3 8 . . . 5 2 . . . . . 8 3 2 . . . 1 . . . . 2 . 2 1 Operators 2 | . 1 . . . . . . . . . . . 1 . . . . . . . . . . . . . . Skim 13 | . 3 2 . . . 6 2 . . . . . . . . . . . . . . . . . . . . Sabotage 7 | . . . . . . . . . . . . . . . . . . 7 . . . . . . . . . Fabricators 3 | . . . . . . . . . . . . . 2 1 . . . . . . . . . . . . . Prioritize 1 | . . . . . . . . . . . . . 1 . . . . . . . . . . . . . . Recompile 2 | . . . . . . . . . . . . . 1 1 . . . . . . . . . . . . . Repair Stations . | . . . . . . . . . . . . . . . . . . . . . . . . . . . . Recycling Units 1 | . 1 . . . . . . . . . . . . . . . . . . . . . . . . . . Reject 1 | . 1 . . . . . . . . . . . . . . . . . . . . . . . . . . Scanalyzers . | . . . . . . . . . . . . . . . . . . . . . . . . . . . . Garrison Access . | . . . . . . . . . . . . . . . . . . . . . . . . . . . . Data Cores Recovered 4 | . . . . . . 1 . . . . . . . . . . . . 2 . . . . . . . 1 Used 2 | . . . . . . . . . . . . . . . . . . . 1 . . . . . . . 1 Hacking Detections 69 | . 5 11 . . . 6 3 4 . 2 . . 16 7 2 1 . 1 1 . . . . 4 . 3 3 Full Trace Events 8 | . 1 1 . . . 2 1 1 . 1 . . 1 . . . . . . . . . . . . . . Feedback Events . | . . . . . . . . . . . . . . . . . . . . . . . . . . . . Feedback Blocked . | . . . . . . . . . . . . . . . . . . . . . . . . . . . . Robot Schematics Acquired . | . . . . . . . . . . . . . . . . . . . . . . . . . . . . Robots Built . | . . . . . . . . . . . . . . . . . . . . . . . . . . . . Authchips . | . . . . . . . . . . . . . . . . . . . . . . . . . . . . Time . | . . . . . . . . . . . . . . . . . . . . . . . . . . . . Total Robot Build Rating . | . . . . . . . . . . . . . . . . . . . . . . . . . . . . Part Schematics Acquired 2 | . . . . . . . . . . . . . 2 . . . . . . . . . . . . . . Parts Built 3 | . . . . . . . . . . . . . 2 1 . . . . . . . . . . . . . Authchips 2 | . . . . . . . . . . . . . 1 1 . . . . . . . . . . . . . Time 245 | . . . . . . . . . . . . . 201 44 . . . . . . . . . . . . . Total Part Build Rating 12 | . . . . . . . . . . . . . 8 4 . . . . . . . . . . . . . Part Studies Acquired 10 | . . 3 . . . . . . . 1 . . 3 . . . . . 3 . . . . . . . . Parts Repaired 3 | . . . . . . . . . . . . . . 1 . . . . 1 . . . . 1 . . . Time 82 | . . . . . . . . . . . . . . 19 . . . . 43 . . . . 20 . . . Parts Recycled . | . . . . . . . . . . . . . . . . . . . . . . . . . . . . Recycled Matter . | . . . . . . . . . . . . . . . . . . . . . . . . . . . . Retrieved Matter . | . . . . . . . . . . . . . . . . . . . . . . . . . . . . Retrieved Components 20 | . 9 9 . . . . . . . . . . . . . . . . . . . . . 2 . . . Parts Scanalyzed 2 | . . . . . . . . . . . . . 2 . . . . . . . . . . . . . . Part Schematics Acquired 2 | . . . . . . . . . . . . . 2 . . . . . . . . . . . . . . Parts Damaged 1 | . . . . . . . . . . . . . 1 . . . . . . . . . . . . . . Bothacking | -11 -10 -9 -9 -9 -8 -8 -8 -7 -7 -7 -7 -7 -6 -5 -5 -5 -5 -5 -4 -4 -4 -4 -3 -3 -2 -1 -1 ------------ Run | Yrd Mat Mat Min Exi Min Mat Sto Fac Was Fac Low Low Fac Fac Ext Cet Arc Hub Fac Upp Upp War Pro Res Res Acc Com Used RIF Installer . | . . . . . . . . . . . . . . . . . . . . . . . . . . . . Robots Hacked . | . . . . . . . . . . . . . . . . . . . . . . . . . . . . Non-combat . | . . . . . . . . . . . . . . . . . . . . . . . . . . . . Combat . | . . . . . . . . . . . . . . . . . . . . . . . . . . . . Robot Hacks Applied . | . . . . . . . . . . . . . . . . . . . . . . . . . . . . Relay Couplers Released 1 | . . . . . . . . . . . . . . . . . . . . . . . . . 1 . . Machine Destruction 1 | . . . . . . . . . . . . . . . . . . . . . . . . . 1 . . Fabnet Peak Effective % . | . . . . . . . . . . . . . . . . . . . . . . . . . . . . Robots Rewired 17 | . . . . . . . . . . . 2 . . . 15 . . . . . . . . . . . . Allies Hacked . | . . . . . . . . . . . . . . . . . . . . . . . . . . . . Hacks Repelled 2 | . . . . . . . . . . . . . . . . . . . . . . 1 . . . . 1 Allies | -11 -10 -9 -9 -9 -8 -8 -8 -7 -7 -7 -7 -7 -6 -5 -5 -5 -5 -5 -4 -4 -4 -4 -3 -3 -2 -1 -1 -------- Run | Yrd Mat Mat Min Exi Min Mat Sto Fac Was Fac Low Low Fac Fac Ext Cet Arc Hub Fac Upp Upp War Pro Res Res Acc Com Total Allies 40 | . . . 3 . . . 10 . . . 2 . . . 23 . . . . . . . . 1 . 1 . Largest Group 11 | . . . 3 3 3 3 10 . . . 2 . . . 11 9 5 . . . . . . . . 1 . Highest-Rated Group 415 | . . . 40 40 40 40 173 . . . 62 . . . 415 249 125 . . . . . . . . 45 . Highest-Rated Ally 159 | . . . 16 16 16 16 29 . . . 32 . . . 159 39 34 . . . . . . . . 45 . Total Orders 37 | . . . 2 . . 3 . . . . . . . . 20 7 . . . . 2 . . . 2 1 . STAY 12 | . . . 1 . . 2 . . . . . . . . 4 2 . . . . 2 . . . . 1 . ROAM 5 | . . . . . . . . . . . . . . . 5 . . . . . . . . . . . . FOLLOW 17 | . . . 1 . . 1 . . . . . . . . 10 5 . . . . . . . . . . . EXPLORE 2 | . . . . . . . . . . . . . . . . . . . . . . . . . 2 . . RETURN 1 | . . . . . . . . . . . . . . . 1 . . . . . . . . . . . . Ally Attacks 431 | . . . 33 . . 25 143 . . . 3 . . . 189 24 14 . . . . . . . . . . Total Damage 7301 | . . . 287 . . 247 1693 . . . 148 . . . 4110 453 363 . . . . . . . . . . Kills 63 | . . . 6 . . 4 22 . . . . . . . 27 3 1 . . . . . . . . . . Allies Corrupted 1 | . . . . . . . . . . . . . . . . . . . . . . . . . 1 . . Allies Melted 2 | . . . . . . . . . . . . . . . . . . . . . . . . . 2 . . Intel | -11 -10 -9 -9 -9 -8 -8 -8 -7 -7 -7 -7 -7 -6 -5 -5 -5 -5 -5 -4 -4 -4 -4 -3 -3 -2 -1 -1 ------- Run | Yrd Mat Mat Min Exi Min Mat Sto Fac Was Fac Low Low Fac Fac Ext Cet Arc Hub Fac Upp Upp War Pro Res Res Acc Com Active Infowar (turns) 18984 | 98 1461 2556 1458 840 219 24 . 1253 253 1284 1119 47 1271 496 1317 213 373 111 436 189 111 269 402 547 1074 278 1285 Optics 6345 | . . . . . . . . 1253 253 1284 1119 47 1271 496 622 . . . . . . . . . . . . Seismic 6655 | 98 1461 2556 1458 840 219 23 . . . . . . . . . . . . . . . . . . . . . Machine Analysis 8335 | . . . . . . . . . . . . . 1234 496 1317 213 373 111 436 189 111 269 402 547 1074 278 1285 Cloaking 466 | . . . . . . . . . . . . . . . . . . . . . . . . . . . 466 Jamming 3 | . . . . . . 1 . . . . . . . . 1 . . . . . . . 1 . . . . Robot Analysis Total 6 | . . 3 . . . 1 . . . . . . . 2 . . . . . . . . . . . . . Derelict Logs Recovered 3 | . . . 2 . . . . . . . . . . . . . . . . 1 . . . . . . . Drone Launches 36 | . . . . . . . 14 . . . . . . . 1 . . . . . 2 . . . 19 . . Drone Recoveries 8 | . . . . . . . . . . . . . . . 1 . . . . . 2 . . . 5 . . Exploration | -11 -10 -9 -9 -9 -8 -8 -8 -7 -7 -7 -7 -7 -6 -5 -5 -5 -5 -5 -4 -4 -4 -4 -3 -3 -2 -1 -1 ------------- Run | Yrd Mat Mat Min Exi Min Mat Sto Fac Was Fac Low Low Fac Fac Ext Cet Arc Hub Fac Upp Upp War Pro Res Res Acc Com Turns Passed 23209 | 233 1461 2846 1458 840 219 2748 926 1269 253 1284 1119 47 1271 496 1317 213 373 161 520 189 111 269 402 547 1074 278 1285 Spaces Moved 20306 | 80 683 1275 683 487 134 1156 463 647 132 822 323 30 2402 1248 1291 315 431 220 921 444 240 589 648 913 1876 592 1261 Core 333 | 2 . . . . . . . . 17 32 213 . . . . . 1 . . . 5 . . . . . 63 Treads 4656 | 78 683 1219 683 487 134 9 463 647 115 . 97 30 11 . . . . . . . . . . . . . . Legs 2039 | . . . . . . 1147 . . . 790 13 . . . . . . . . . . . . . . . 89 Wheels 56 | . . 56 . . . . . . . . . . . . . . . . . . . . . . . . . Hover 2333 | . . . . . . . . . . . . . . . . . 133 220 512 . . . 136 776 520 . 36 Flight 10889 | . . . . . . . . . . . . . 2391 1248 1291 315 297 . 409 444 235 589 512 137 1356 592 1073 Fastest Speed 14 | 50 160 145 160 160 160 162 158 158 50 50 105 160 14 20 20 20 24 40 20 30 34 24 25 28 20 29 29 Average Speed 77 | 157 182 167 160 160 160 177 161 158 151 109 283 160 26 21 21 24 32 40 41 33 39 30 33 38 31 29 45 Slowest Speed 550 | 160 240 320 160 160 160 280 200 158 237 165 550 160 160 23 94 91 450 48 112 40 350 34 100 52 112 29 260 Overloaded Moves 34 | . . . . . . . . . . . . . 34 . . . . . . . . . . . . . . Propulsion Burnouts . | . . . . . . . . . . . . . . . . . . . . . . . . . . . . Robots Hopped 28 | . . . . . . . . . . . . . 4 1 15 . . . . . 1 1 1 . 1 3 1 Potential Cave-ins 5 | . . . . . . . . . . . . . . . . . . . . . . . . . 5 . . Cave-ins Triggered . | . . . . . . . . . . . . . . . . . . . . . . . . . . . . Exploration Rate (%) 54 | 6 81 89 96 90 44 67 80 23 84 24 52 13 55 28 85 78 98 28 26 54 50 80 66 26 44 16 35 Regions Visited 27 Branch Regions 15 Pre-discovered Areas 4 | . . . 1 1 . 2 . . . . . . . . . . . . . . . . . . . . . Known Exits Taken 9 | . . . . . . 1 1 . . . 1 1 . 1 . . . 1 1 . 1 . 1 . . . . Unknown Exits Taken 16 | 1 1 1 1 1 1 . . . . 1 . . 1 . 1 1 1 . . 1 . 1 . 1 1 1 . Scrap Searched 10 | . . . 1 . . . . . . . 3 . . . . . . . . 2 1 . 3 . . . . Spaces Dug 126 | . . . . . . 1 . 2 . . 19 . 51 10 . . . 4 5 . . . 2 5 4 9 14 Terrain Destroyed 671 | . 5 . . . . 8 . 11 117 2 68 . 91 73 35 135 19 4 60 . 9 . 2 5 4 9 14 Melee 82 | . . . . . . 1 . 2 . . . . 26 10 . . . 4 5 . . . 2 5 4 9 14 Projectile 3 | . . . . . . . . . . 2 1 . . . . . . . . . . . . . . . . AOE 586 | . 5 . . . . 7 . 9 117 . 67 . 65 63 35 135 19 . 55 . 9 . . . . . . Terrain Rammed . | . . . . . . . . . . . . . . . . . . . . . . . . . . . . Walls Destroyed . | . . . . . . . . . . . . . . . . . . . . . . . . . . . . Machines Disabled . | . . . . . . . . . . . . . . . . . . . . . . . . . . . . Actions | -11 -10 -9 -9 -9 -8 -8 -8 -7 -7 -7 -7 -7 -6 -5 -5 -5 -5 -5 -4 -4 -4 -4 -3 -3 -2 -1 -1 --------- Run | Yrd Mat Mat Min Exi Min Mat Sto Fac Was Fac Low Low Fac Fac Ext Cet Arc Hub Fac Upp Upp War Pro Res Res Acc Com Total 26230 | 144 808 1727 1031 549 139 1742 603 807 162 1073 422 29 2933 1438 2239 423 629 276 1032 462 254 666 769 1071 2275 677 1850 Wait 4047 | . 42 225 336 58 6 453 91 87 6 115 5 . 379 123 786 80 140 44 42 2 2 36 39 112 287 77 474 Move 20226 | 79 682 1274 682 486 133 1155 462 647 131 821 322 29 2393 1245 1262 314 430 219 920 443 237 586 645 912 1873 585 1259 Hop 26 | . . . . . . . . . . . . . 4 1 13 . . . . . 1 1 1 . 1 3 1 Pick Up 150 | 5 15 11 3 2 . 15 2 5 1 17 9 . 12 9 9 3 7 . 3 . 1 3 2 3 9 . 4 Fast Attach 184 | 5 2 14 . . . 4 7 1 . 21 5 . 13 5 7 . 9 . 10 3 1 14 22 9 21 1 10 Attach 118 | 3 2 6 . . . 14 1 4 3 11 5 . 8 5 10 3 2 . 12 1 4 1 3 3 6 . 11 Detach 44 | 1 2 1 . . . 1 . . . 2 . . 5 3 4 1 1 . 4 1 3 1 1 6 2 . 5 Swap 59 | . 3 11 . . . 6 2 7 1 3 4 . . . 4 2 4 1 5 . . 2 . . 3 . 1 Drop 198 | . 1 27 1 3 . 17 8 2 1 11 4 . 19 5 5 3 12 . 17 . 3 12 14 2 23 . 8 Fire 445 | 51 59 158 9 . . 4 . 2 19 44 57 . 4 6 6 6 4 . 4 . 1 . 11 . . . . Melee 551 | . . . . . . 73 23 52 . 27 . . 66 24 38 3 20 9 15 12 1 1 31 24 44 11 77 Ram 1 | . . . . . . . . . . . . . . . . . . 1 . . . . . . . . . Kick 1 | . . . . . . . . . . 1 . . . . . . . . . . . . . . . . . Crush . | . . . . . . . . . . . . . . . . . . . . . . . . . . . . Escape Stasis 63 | . . . . . . . . . . . . . 30 12 19 . . 2 . . . . . . . . . Rewire 79 | . . . . . . . . . . . 11 . . . 68 . . . . . . . . . . . . Trap . | . . . . . . . . . . . . . . . . . . . . . . . . . . . . Miscellaneous 38 | . . . . . . . 7 . . . . . . . 8 8 . . . . . 9 . . 6 . . Route ------- -11/Scrapyard -10/Materials (discovered 4 exits: *Mat x2 / [*Min x2]) -9/Materials (discovered 4 exits: *Mat x3 / [*Min]) -9/Mines (discovered 3 exits: *Mat x2 / *Exi) -9/Exiles -8/Mines -8/Materials (discovered 5 exits: *Fac x3 / *Sto x2) -8/Storage -7/Factory (discovered 2 exits: *Fac x2) -7/Waste -7/Factory -7/Lower Caves -7/Lower Caves -6/Factory (discovered 5 exits: *Fac x3 / *Low x2) -5/Factory (discovered 5 exits: *Fac / *Upp x2 / *Ext x2) -5/Extension (discovered 3 exits: *Fac x2 / *Cet) -5/Cetus -5/Archives (discovered 3 exits: *Fac / *Hub x2) -5/Hub_04(d) (discovered 4 exits: *Fac x4) -4/Factory (discovered 7 exits: Res x4 / *Upp x2 / Arm) -4/Upper Caves -4/Upper Caves -4/Warlord -3/Proximity Caves -3/Research -2/Research (discovered 3 exits: *Acc x2 / *Qua) -1/Access (discovered 2 exits: Sur / *Com) -1/Command History --------- Turn | Location | Event 15 | -11/Scrapyard | Discovered new exit (range 15) 234 | -11/Scrapyard | Entered Materials 270 | -10/Materials | Discovered new exit (range 11) 303 | -10/Materials | Build established: Mutant 605 | -10/Materials | Discovered new exit (range 15) 1162 | -10/Materials | Discovered new exit (range 16) 1666 | -10/Materials | Discovered new exit (range 13) 1695 | -10/Materials | Entered another Materials area 1695 | -9/Materials | Evolved 2 slots: Propulsion x1, Utility x1 2690 | -9/Materials | Build established: Scavenger-Mutant 2898 | -9/Materials | Discovered new exit (range 11) 3014 | -9/Materials | Central database locked down 3435 | -9/Materials | Discovered new exit (range 15) 3944 | -9/Materials | Discovered new exit (range 14) 4095 | -9/Materials | First assault squad dispatched 4245 | -9/Materials | Discovered new exit (range 16) 4541 | -9/Materials | Entered Mines 4548 | -9/Mines | Assisted by bots powering up and referring to "LRC-V3" 4621 | -9/Mines | A weapon hastily lodged in a ceiling crevice suddenly fell to the ground 4702 | -9/Mines | Deemed a non-threat by the Exiles lab entrance 4704 | -9/Mines | Discovered new exit (range 5) 4774 | -9/Mines | Assembled infested the area 5525 | -9/Mines | Discovered new exit (range 3) 5702 | -9/Mines | Discovered new exit (range 6) 5806 | -9/Mines | Received a Rocket Launcher from a helpful Derelict 5999 | -9/Mines | Entered Exiles 5999 | -9/Exiles | Accompanied by 3 allies 6039 | -9/Exiles | Met 8R-AWN 6068 | -9/Exiles | Met EX-HEX 6143 | -9/Exiles | Met EX-DEC 6176 | -9/Exiles | Visited The Gauntlet 6375 | -9/Exiles | Learned location of Zion (-6) 6415 | -9/Exiles | Met EX-BIN 6504 | -9/Exiles | Aligned with FarCom system 6506 | -9/Exiles | Given EX-Vault access code 6546 | -9/Exiles | Opened EX-Vault 6557 | -9/Exiles | Found 0b10 Alert Chip 6590 | -9/Exiles | Warned to stay clear of 0b10 Research branches 6763 | -9/Exiles | Discovered new exit (range 14) 6839 | -9/Exiles | Left Exiles lab with 0b10 Alert Chip 6839 | -9/Exiles | Entered Mines 6839 | -8/Mines | Accompanied by 3 allies 7007 | -8/Mines | Discovered new exit (range 11) 7058 | -8/Mines | Entered Materials 7058 | -8/Materials | Accompanied by 3 allies 7058 | -8/Materials | Evolved 2 slots: Propulsion x1, Utility x1 7059 | -8/Materials | Identified exit to Storage 7350 | -8/Materials | Build established: Mutant 8629 | -8/Materials | Discovered new exit (range 11) 8842 | -8/Materials | Learned location of 1 exit from Lower Caves 8883 | -8/Materials | Discovered new exit (range 4) 8911 | -8/Materials | Learned Factory terminal intel 8972 | -8/Materials | Learned location of Lower Caves (-7) 9025 | -8/Materials | Learned 4 Factory zone layouts 9066 | -8/Materials | Learned 8 Factory zone layouts 9115 | -8/Materials | Learned Factory emergency access door positions 9145 | -8/Materials | Learned Factory security intel 9241 | -8/Materials | Identified exit to Factory 9804 | -8/Materials | System corruption reached 10% 9806 | -8/Materials | Entered Storage 9936 | -8/Storage | Assisted by bots powering up and referring to "LRC-V3" 9980 | -8/Storage | Garrison activated, responded to threat 10143 | -8/Storage | Lost 4 allies 10243 | -8/Storage | Lost 3 allies 10500 | -8/Storage | Build established: Scavenger-Mutant 10732 | -8/Storage | Entered Factory 10732 | -7/Factory | Accompanied by 2 allies 10732 | -7/Factory | Evolved 2 slots: Utility x2 10733 | -7/Factory | Identified exit to Factory 10737 | -7/Factory | Loaded intel: 26 terminal locations 10752 | -7/Factory | Lost 13 allies 11016 | -7/Factory | Build established: Scavenger-Gladiator 11602 | -7/Factory | Found Powered Armor 11634 | -7/Factory | Discovered exit to Factory (range 12) 12001 | -7/Factory | Sucked down chute 12001 | -7/Factory | Entered Waste 12016 | -7/Waste | EMP discharged 12030 | -7/Waste | Spotted C-40 Crusher 12043 | -7/Waste | Spotted C-40 Crusher 12081 | -7/Waste | Spotted C-40 Crusher 12088 | -7/Waste | Destroyed C-40 Crusher 12116 | -7/Waste | EMP discharged 12116 | -7/Waste | System corruption reached 10% 12123 | -7/Waste | Destroyed C-40 Crusher 12146 | -7/Waste | Spotted C-40 Crusher 12148 | -7/Waste | Spotted C-40 Crusher 12205 | -7/Waste | Spotted C-40 Crusher 12213 | -7/Waste | Crushed by Compactor (1 part destroyed, 1 dropped) 12216 | -7/Waste | EMP discharged 12216 | -7/Waste | Crushed by Compactor (1 part destroyed, 2 dropped) 12219 | -7/Waste | Crushed by Compactor (1 part destroyed, 2 dropped) 12234 | -7/Waste | Discovered new exit (range 19) 12241 | -7/Waste | Crushed by Compactor (1 part destroyed, 1 dropped) 12245 | -7/Waste | Crushed by Compactor (1 part destroyed, 1 dropped) 12254 | -7/Waste | Entered Factory 12276 | -7/Factory | Lost 6 parts (3n2u1w) 12336 | -7/Factory | Allied Derelicts emerged from ambush trap array 13028 | -7/Factory | Core integrity fell below 50% 13054 | -7/Factory | Lost 4 parts (1n3u) 13171 | -7/Factory | Garrison activated, responded to threat 13338 | -7/Factory | Lost 3 parts (1n2u) 13340 | -7/Factory | Build established: Mutant 13514 | -7/Factory | Discovered new exit (range 4) 13538 | -7/Factory | Entered Lower Caves 13539 | -7/Lower Caves | Identified exit to Lower Caves 13552 | -7/Lower Caves | Attracted the attention of an 0b10 outpost 13660 | -7/Lower Caves | Lost 10 parts (1p3n3u3w) 14064 | -7/Lower Caves | Core integrity fell below 20% 14287 | -7/Lower Caves | Found Prototype Device 14288 | -7/Lower Caves | Identified Heart of Steel 14543 | -7/Lower Caves | Attracted the attention of an 0b10 checkpoint 14657 | -7/Lower Caves | Entered another Lower Caves area 14658 | -7/Lower Caves | Encountered a Warlord checkpoint 14672 | -7/Lower Caves | Discovered exit to Factory (range 18) 14704 | -7/Lower Caves | Entered Factory 14704 | -6/Factory | Evolved 2 slots: Utility x2 14848 | -6/Factory | Discovered new exit (range 19) 14912 | -6/Factory | Discovered new exit (range 4) 14952 | -6/Factory | Central database locked down 14997 | -6/Factory | Discovered new exit (range 5) 15083 | -6/Factory | Identified exit to Lower Caves 15194 | -6/Factory | Build established: Hacker-Scout 15201 | -6/Factory | Fabricated Cld. VTOL Module? 15783 | -6/Factory | Fabricated Cld. VTOL Module (x1) 15975 | -6/Factory | Entered another Factory area 15975 | -5/Factory | Evolved 2 slots: Propulsion x2 16046 | -5/Factory | Watched by a mysterious "MATRIX" hacker. 16065 | -5/Factory | Repaired Scythe+ 16137 | -5/Factory | Identified exit to Upper Caves 16137 | -5/Factory | Identified exit to Extension 16150 | -5/Factory | Spotted B-75 Beast 16227 | -5/Factory | Discovered new exit (range 10) 16360 | -5/Factory | Fabricated Cld. VTOL Module (x1) 16471 | -5/Factory | Entered Extension 16581 | -5/Extension | Rescued A7 16662 | -5/Extension | Rescued a captive Derelict 16664 | -5/Extension | Rescued a captive Derelict 16840 | -5/Extension | Lost 4 allies 17029 | -5/Extension | Spotted B-75 Beast 17069 | -5/Extension | Spotted B-75 Beast 17092 | -5/Extension | Allies destroyed B-75 Beast 17103 | -5/Extension | Discovered new exit (range 3) 17157 | -5/Extension | Lost 6 parts (1p2n2u1w) 17376 | -5/Extension | Rescued a captive Derelict 17405 | -5/Extension | Build established: Hacker-Sprinter 17463 | -5/Extension | Extracted ID and sensor layout for unrecognized location from A7's data core 17493 | -5/Extension | Rescued a captive Derelict 17534 | -5/Extension | Rescued a captive Derelict 17535 | -5/Extension | Rescued a captive Derelict 17561 | -5/Extension | Rescued a captive Derelict 17562 | -5/Extension | Rescued a captive Derelict 17735 | -5/Extension | Discovered new exit (range 10) 17736 | -5/Extension | Discovered new exit (range 6) 17788 | -5/Extension | Entered Cetus 17788 | -5/Cetus | Accompanied by 9 allies 17792 | -5/Cetus | Spotted Cetus Guard 17804 | -5/Cetus | Spotted Cetus Guard 17807 | -5/Cetus | Spotted Cetus Guard 17811 | -5/Cetus | Destroyed Cetus Guard 17827 | -5/Cetus | Allies destroyed Cetus Guard 17836 | -5/Cetus | Allies destroyed Cetus Guard 17898 | -5/Cetus | Discovered new exit (range 16) 18001 | -5/Cetus | Entered Archives 18001 | -5/Archives | Accompanied by 5 allies 18067 | -5/Archives | Lost 5 allies 18218 | -5/Archives | Discovered new exit (range 16) 18229 | -5/Archives | Discovered new exit (range 16) 18247 | -5/Archives | Discovered new exit (range 15) 18256 | -5/Archives | Unable to access archive contents 18259 | -5/Archives | Unable to access archive contents 18374 | -5/Archives | Entered Hub_04(d) 18390 | -5/Hub_04(d) | Identified exit to Factory 18396 | -5/Hub_04(d) | Network Hub disabled 18494 | -5/Hub_04(d) | Network Hub disabled 18510 | -5/Hub_04(d) | Spotted Lightning 18510 | -5/Hub_04(d) | Spotted Lightning 18524 | -5/Hub_04(d) | Network Hub disabled 18527 | -5/Hub_04(d) | Disrupted transfer network 18535 | -5/Hub_04(d) | Entered Factory 18535 | -4/Factory | Evolved 2 slots: Power x1, Propulsion x1 18553 | -4/Factory | Identified exit to Research 18565 | -4/Factory | Lost 3 parts (1p2n) 18826 | -4/Factory | Identified exit to Upper Caves 18826 | -4/Factory | Identified exit to Armory 18836 | -4/Factory | Found Prototype Launcher 18836 | -4/Factory | Identified Smartbomb Launcher 18993 | -4/Factory | Repaired Broken Impulse Thruster 19013 | -4/Factory | Lost 4 parts (4n) 19055 | -4/Factory | Entered Upper Caves 19115 | -4/Upper Caves | Lost 4 parts (1p2n1u) 19234 | -4/Upper Caves | Discovered new exit (range 6) 19240 | -4/Upper Caves | Learned location of 1 exit from Upper Caves 19244 | -4/Upper Caves | Entered another Upper Caves area 19245 | -4/Upper Caves | Identified exit to Warlord 19271 | -4/Upper Caves | Attracted the attention of an 0b10 checkpoint 19355 | -4/Upper Caves | Entered Warlord 19367 | -4/Warlord | System corruption cleaned by Quarantine Array 19376 | -4/Warlord | Build established: Wizard-Mutant 19387 | -4/Warlord | Received a Watcher feed algorithm from an ecstatic Tinkerer 19387 | -4/Warlord | Ran a Watcher feed algorithm 19406 | -4/Warlord | Learned Testing emergency access door positions 19406 | -4/Warlord | Learned Testing stockpile data 19406 | -4/Warlord | Learned 4 Testing zone layouts 19406 | -4/Warlord | Learned Quarantine security intel 19406 | -4/Warlord | Learned Factory recycling unit intel 19409 | -4/Warlord | Met Warlord 19434 | -4/Warlord | Warlord's base attacked by MAIN.C 19486 | -4/Warlord | Found Prototype Processor 19486 | -4/Warlord | Identified Exp. Armor Integrity Analyzer 19488 | -4/Warlord | Found Prototype Device 19488 | -4/Warlord | Identified System Purifier 19493 | -4/Warlord | Found Prototype Hackware 19493 | -4/Warlord | Identified Ghost Barrier 19503 | -4/Warlord | Found Prototype Reactor 19503 | -4/Warlord | Identified Vortex Chain Reactor 19545 | -4/Warlord | Found Prototype Launcher 19545 | -4/Warlord | Identified Vortex Catalyst Activator 19547 | -4/Warlord | Found Prototype Energy Cannon 19547 | -4/Warlord | Identified Vortex Cannon 19551 | -4/Warlord | Found Vortex Cannon 19622 | -4/Warlord | Discovered new exit (range 7) 19624 | -4/Warlord | Entered Proximity Caves 19627 | -3/Proximity Caves | Spotter reported a threat 19724 | -3/Proximity Caves | Spotter reported a threat 19765 | -3/Proximity Caves | Build established: Wizard-Sprinter 19785 | -3/Proximity Caves | Found Prototype Device 19785 | -3/Proximity Caves | Identified Adv. EM Shield 19787 | -3/Proximity Caves | Found Prototype Device 19787 | -3/Proximity Caves | Identified Exp. Transmission Jammer 19790 | -3/Proximity Caves | Found Prototype Processor 19790 | -3/Proximity Caves | Identified Exp. Melee Analysis Suite 19792 | -3/Proximity Caves | Found Exp. Melee Analysis Suite 19795 | -3/Proximity Caves | Found Exp. Melee Analysis Suite 19854 | -3/Proximity Caves | Lost 6 parts (2p2n2u) 19865 | -3/Proximity Caves | Found Exp. Transmission Jammer 19950 | -3/Proximity Caves | Core integrity fell below 50% 19983 | -3/Proximity Caves | Lost 3 parts (1n2w) 20002 | -3/Proximity Caves | Discovered exit to Research (range 5) 20026 | -3/Proximity Caves | Entered Research 20026 | -3/Research | Evolved 2 slots: Utility x2 20173 | -3/Research | Repaired Broken Xenon Bombardment Thruster 20276 | -3/Research | Search patrols dispatched 20359 | -3/Research | Build established: Hacker-Gladiator 20377 | -3/Research | Discovered new exit (range 3) 20526 | -3/Research | Search patrols dispatched 20573 | -3/Research | Entered another Research area 20573 | -2/Research | Warlord forces began assault on 0b10 20573 | -2/Research | Evolved 2 slots: Propulsion x1, Utility x1 20683 | -2/Research | Research machine network offline 20723 | -2/Research | Discovered new exit (range 11) 20743 | -2/Research | Met up with Warlord 20966 | -2/Research | Discovered new exit (range 6) 20978 | -2/Research | Identified exit to Quarantine 21018 | -2/Research | Spotted Striker 21031 | -2/Research | Spotted Striker 21047 | -2/Research | Destroyed Striker 21058 | -2/Research | Found Exp. Melee Analysis Suite 21142 | -2/Research | Borebot progress halted 21234 | -2/Research | Spotted Striker 21235 | -2/Research | Spotted Striker 21243 | -2/Research | Spotted B-90 Cyclops 21286 | -2/Research | Discovered new exit (range 6) 21307 | -2/Research | Lost 5 parts (1p4n) 21571 | -2/Research | Build established: Hacker-Sprinter 21573 | -2/Research | Spotted Striker 21573 | -2/Research | Spotted Executioner 21573 | -2/Research | Spotted Executioner 21591 | -2/Research | Warlord invited to help at Command 21591 | -2/Research | Given Cave Seal Controls access code 21597 | -2/Research | Lost 4 allies 21635 | -2/Research | Found Exp. Melee Analysis Suite 21647 | -2/Research | Entered Access 21647 | -1/Access | Evolved 2 slots: Utility x2 21652 | -1/Access | Identified exit to Surface 21923 | -1/Access | Discovered new exit (range 7) 21925 | -1/Access | Entered Command 21930 | -1/Command | Build established: Scavenger-Sprinter 22304 | -1/Command | Spotted B-99 Colossus 22313 | -1/Command | Found Adv. Force Booster 22471 | -1/Command | Disengaged cave seal 22473 | -1/Command | Welcomed Warlord to Command 22525 | -1/Command | Warlord commented on Warlord statues 22543 | -1/Command | Spotted M Guard 22543 | -1/Command | Spotted Combat Programmer 22543 | -1/Command | Spotted Combat Programmer 22549 | -1/Command | Spotted M Guard 22580 | -1/Command | Lost 7 parts (1p2n4u) 22587 | -1/Command | Destroyed M Guard 22587 | -1/Command | All MAIN.C guards destroyed 22602 | -1/Command | Lost 4 allies 22713 | -1/Command | Derelicts emerged from the dark tunnel 22859 | -1/Command | Build established: Scavenger-Gladiator 23114 | -1/Command | Met MAIN.C 23120 | -1/Command | 0b10 Conduit disabled 23124 | -1/Command | Warlord shut down involuntarily 23156 | -1/Command | System corruption reached 10% 23170 | -1/Command | Core integrity fell below 50% 23182 | -1/Command | Core integrity fell below 20% 23210 | -1/Command | Destroyed by P-80 Master with Gamma Rifle Last Messages --------------- 23149_ Nanosword follow-up attack on MAIN.C. 23155_ Adv. Shield Generator destroyed. 23157_ Nanosword follow-up attack on MAIN.C. 23158_ Cloaking Device destroyed. 23162_ Adv. Target Analyzer destroyed. 23162_ Exp. Armor Integrity Analyzer destroyed. 23163_ Nanosword follow-up attack on MAIN.C. 23164_ Vortex Chain Reactor destroyed. 23168_ Exp. Melee Analysis Suite destroyed. 23171_ P-80 Master resets P-80 Master, system corruption cleaned. 23175_ System corrupted: Graphene Brace rejected. 23175_ Acquired Graphene Brace. 23176_ P-80 Master resets P-80 Master, system corruption cleaned. 23176_ Med. Storage Unit destroyed. 23177_ Dropped Nanosword. 23181_ Exp. Melee Analysis Suite destroyed. 23187_ P-80 Master resets P-80 Master, system corruption cleaned. 23192_ System corrupted: Energy discharge (-28). 23209_ FUPHOKRY/GGSC:2VC/BGLU&RJC 23209_ Acquired Imp. Melee Analysis Suite. Map ----- +----------------------------------------------------+ | ???????????????????????""T""??????# # #?? | | ????????????????????????"""???????# / #?? | | ??????????????????????????????????# # #?? | | ??????????????????????????????????# # #?? | | ???????????????????????????????#### # #?? | | ??????????????????????????????? # %# #?? | | ?????????????????????????#? ?? + # #?? | | ?????????????????????????# """ # # #?? | | ?????????????????????????# """ # "#######?? | | ?????????????????????????# R" # ##???????? | | ?????????????????????????# """ # #????????? | | ?????????????????????????# "" # #????????? | | ?????????????????????????#! " #????????? | | ?????????????????????????#% " ######???? | | ?????????????????????????# " #???? | | ?????????????????????????# # #???? | | ?????????????????????????# "" + #???? | | ?????????????????????????# """ # #???? | | ?????????????????????????# """ + #???? | | ?????????????????????????# "" ###### #???? | | ??????????###???###??????# #????# #???? | | ########### ##### #####??# ! #????# #???# | | # # # #??# [%! #????# #???# | | # # # W # # W #####!###; ####### ##### | | / =%^![! | | p /=@*%= !=/ | | p / /%^===% ! [ | | / /% % ]%= | | / [ =% % = *!] | | # ### ## W ## W ##### ;=[;;###########"T### | | ### ### ### #???#*! *% #????????#""#?? | | ####### ###### ## ####???# %= ; #???????####?? | | # # # ## ## ##?????# =! ;###########"##? | | # # # ## ##??????# [% ;# #? | | # ##### # ## ##????????# != ## #? | | # #??? ??###?????????# ## #? | | # #???? # ??????????????# ## ## | | # #????##???????????????# * [## # | | # #?????????????????????# T < [ ## + | | ? #?????????????????????# ## # | | ?? ???????????????????????# ## # | | ??????????????????????????######+### "" ] # | | ???????????????????????????????? ?# """" # | | ???????????????????????????????? # """" # | | ???????????????????????????????? ?# "" # | | ???????????????????????????????? ##???######### | | ???????????????????????????????? ????????????? | | ???????????????????????????????? ?????????????## | | ?????????????????????????????????????????????????? | | ?????????????????????????????????????????????????? | +----------------------------------------------------+ Best States ------------- Heat Dissipation 83 Energy Generation 55 Energy Capacity 700 Matter Stores 300 Matter Capacity 300 Sight Range 22 Terrain Scan Density 10 Cloak Strength 2 Power Amplification 30 Armor Coverage 600 Point Defense Rating 480 Evasion (%) 76 Melee Accuracy 42 Target Analysis 12 Armor Integrity Analysis 50 Recoil Reduction 4 Force Boost 40 Offensive Hacking 36 Defensive Hacking 46 Authchip Count 1 Item Schematics ----------------- Cld. VTOL Module | -6/Factory | Scanalyzed Mic. Nuclear Core | -6/Factory | Scanalyzed Robot Schematics ------------------ None Fabricated ------------ Cld. VTOL Module | x1 | -6/Factory Cld. VTOL Module | x1 | -6/Factory | Authchip Cld. VTOL Module | x1 | -5/Factory | Authchip Repaired ---------- Scythe | 72% | -5/Factory Impulse Thruster | 99% | -4/Factory | Broken Xenon Bombardment Thruster | 6% | -3/Research | Broken Studied --------- Lgt. Treads | -9/Materials | Hacked Imp. Aluminum Leg | -9/Materials | Hacked Flail | -9/Materials | Hacked VSS Leg | -7/Factory | Hacked Scythe | -6/Factory | Hacked Lgt. Nuclear Core | -6/Factory | Hacked Mic. Nuclear Core | -6/Factory | Hacked VTOL Module | -4/Factory | Hacked Imp. Hover Unit | -4/Factory | Hacked Lrn. Missile Launcher | -4/Factory | Hacked Alien Tech Used ----------------- None Achievements -------------- All Kinds Of Bad News Hackathon Hammer Time I Laugh At Your Crits Off Switch Showdown Welcome To The Revolution Challenges ------------ None Game ------ Seed RecyclingBarrageShotgun Manual? 0 Play Time 03:55:24 Cumulative 272.3 hours Start 2026.02.14 @ 17:00:31 End 2026.02.15 @ 18:36:48 Sessions 3 Manual Loads 0 Difficulty Rogue Special Mode None Game No. 225 Rogue 225 Adventurer 0 Explorer 0 Win Type - Total 16 Types 7/0/7/2/0/0/0/0/0/0 Lore% 82 Gallery% 71 Achievement% 52 Wizard Run 0 Options --------- Layout 1 ASCII 0 Keyboard 0 Movement Numpad Keybinds 0 Fullscreen 1 Font 32/SmallcapsGlow Map View 77x35 Zoom Use 0% Tactical HUD 1 Map Filters NONE Filters NONE Steam 1 RUN: 9194bc6b-46b1-40ff-8baf-1dae31377af5